{"text_format":"3","workbook":"xlsx","n_sheets":2,"sheets":["Раздел 1","Раздел 2"],"not_rendered":{"defined_names":4},"read":"whole","date_system":"1900"}

{"sheet":"Раздел 1","index":0,"n_rows":126,"n_cols":39,"rows_kept":126,"merged":[[0,7,0,11],[1,9,1,11],[2,9,2,11],[3,9,6,44],[7,9,7,21],[7,24,7,43],[8,9,8,21],[8,24,8,43],[9,9,9,10],[9,11,9,13],[9,14,9,15],[9,17,9,31],[9,32,9,34],[9,35,9,37],[11,1,11,10],[12,1,12,10],[13,4,13,7],[14,9,14,10],[16,9,16,10],[17,1,17,2],[17,9,17,10],[18,9,18,10],[19,11,20,11],[20,4,20,6],[21,9,21,10],[22,1,22,11],[23,1,24,4],[23,5,24,5],[23,6,24,6],[23,7,23,11],[24,8,24,9],[25,1,25,4],[25,8,25,9],[26,1,26,4],[26,8,26,9],[27,1,27,4],[27,8,27,9],[28,1,28,4],[28,8,28,9],[29,1,29,4],[29,8,29,9],[30,1,30,4],[30,8,30,9],[31,1,31,4],[31,8,31,9],[32,1,32,4],[32,8,32,9],[33,1,33,4],[33,8,33,9],[34,1,34,4],[34,8,34,9],[35,1,35,4],[35,8,35,9],[36,1,36,4],[36,8,36,9],[37,1,37,4],[38,1,38,4],[39,1,39,4],[39,8,39,9],[40,1,40,4],[40,8,40,9],[41,1,41,4],[41,8,41,9],[42,1,42,4],[43,1,43,4],[44,1,44,4],[45,1,45,4],[46,1,46,4],[46,8,46,9],[47,1,47,4],[48,1,48,4],[49,1,49,4],[50,1,50,4],[50,8,50,9],[51,1,51,4],[51,8,51,9],[52,1,52,4],[53,1,53,4],[54,1,54,4],[54,8,54,9],[55,1,55,4],[55,8,55,9],[56,1,56,4],[56,8,56,9],[57,1,57,4],[57,8,57,9],[58,1,58,4],[58,8,58,9],[59,1,59,4],[59,8,59,9],[60,1,60,4],[60,8,60,9],[61,1,61,4],[62,1,62,4],[63,1,63,4],[64,1,64,4],[65,1,65,4],[65,8,65,9],[66,1,66,4],[66,8,66,9],[67,1,67,4],[68,1,68,4],[68,8,68,9],[69,1,69,4],[69,8,69,9],[70,1,70,4],[70,8,70,9],[71,1,71,4],[71,8,71,9],[72,1,72,4],[72,8,72,9],[73,1,73,4],[73,8,73,9],[74,1,74,4],[75,1,75,4],[75,8,75,9],[76,1,76,4],[77,1,77,4],[78,1,78,4],[79,1,79,4],[79,8,79,9],[80,1,80,4],[80,8,80,9],[81,1,81,4],[81,8,81,9],[82,1,82,4],[82,8,82,9],[83,1,83,4],[83,8,83,9],[84,1,84,4],[85,1,85,4],[85,8,85,9],[86,1,86,4],[86,8,86,9],[87,1,87,4],[87,8,87,9],[88,1,88,4],[89,8,89,9],[90,1,90,4],[90,8,90,9],[91,1,91,4],[91,8,91,9],[92,1,92,4],[92,8,92,9],[93,8,93,9],[94,1,94,4],[94,8,94,9],[95,1,95,4],[95,8,95,9],[96,1,96,4],[97,1,97,4],[97,8,97,9],[99,1,99,4],[99,8,99,9],[100,1,100,4],[100,8,100,9],[101,1,101,4],[101,8,101,9],[102,1,102,4],[102,8,102,9],[103,1,103,4],[103,8,103,9],[104,1,104,4],[104,8,104,9],[105,1,105,4],[105,8,105,9],[106,1,106,4],[106,8,106,9],[107,1,107,4],[107,8,107,9],[108,1,108,4],[108,8,108,9],[109,1,109,4],[110,1,110,4],[111,1,111,4],[112,1,112,4],[113,1,113,4],[113,8,113,9],[114,1,114,4],[115,1,115,11],[116,1,116,11],[117,1,117,11],[118,1,118,11],[119,1,119,11],[120,1,120,11],[121,1,121,11],[122,1,122,11],[123,1,123,11],[124,1,124,11],[125,1,125,11]]}
[{"$nulls":7},"Приказ Министерства финансов РФ от \"31\" августа 2018г. №186Н"]
[{"$nulls":9},"УТВЕРЖДАЮ"]
[]
[{"$nulls":9},"Начальник Управления дошкольного образования ИК НМР РТ"]
[]
[]
[]
[{"$nulls":9},"_______________________ С.А.Андрианова",{"$nulls":14},"С.А.Андрианова"]
[{"$nulls":9},"                               (подпись)",{"$nulls":14},"(расшифровка подписи)"]
[{"$nulls":9},"                                                                                            \"____\"________________________2021г.",{"$nulls":4},"\"",{"$nulls":17},20,null,null,"20",null,null," г."]
[]
[null,"План финансово-хозяйственной деятельности"]
[null,"на 2021 год и плановый период 2022 и 2023 годов",{"$nulls":9},"Коды"]
[{"$nulls":4},"                                   от «01» января 2021г.",{"$nulls":5},"Дата","01.01.2021"]
[{"$nulls":9},"по Сводному реестру",null,92320523]
[{"$nulls":10},"ИНН",1651028946]
[null,"Учреждение ","Муниципальное бюджетное дошкольное образовательное учреждение \"Детский сад \"Тансылу\" с.Ташлык\" НМР РТ",{"$nulls":6},"КПП",null,165101001]
[null,"Орган, осуществляющий",{"$nulls":7},"по Сводному реестру"]
[null,"функции и полномочия учредителя _____________________________________________________________________________________________",null,"Исполнительный комитет Нижнекамского муниципального района РТ",{"$nulls":5},"глава по БК"]
[null,"Вид документа  ",0]
[{"$nulls":4},"(первичный - «0», уточненный - «1», «2», «3», «…»)  2"]
[null,"Единица измерения: руб",{"$nulls":7},"по ОКЕИ",null,383]
[null,"Раздел 1.  Поступления и выплаты"]
[null,"Наименование показателя",{"$nulls":3},"Код строки","Код по бюджетной классификации Российской Федерации3","Сумма "]
[{"$nulls":7},"на 2021 г.\nтекущий  \nфинансовый год","на 2022 г.\nпервый год планового периода",null,"на 2023 г.\nвторой год планового периода","за пределами \n планового периода"]
[null,1,{"$nulls":3},2,3,4,5,null,6,7]
[null,"Остаток средств на начало текущего финансового года 4",{"$nulls":3},"0001","х",{"v":178372.97,"d":"178,372.97"}]
[null,"Остаток средств на конец текущего финансового года 4",{"$nulls":3},"0002","х"]
[null,"Поступления, всего:",{"$nulls":3},"1000","х",{"v":6875550.99,"d":"6,875,550.99"},{"$f":"I31","v":{"v":6962547.720000001,"d":"6,962,547.72"}},null,{"$f":"K31","v":{"v":7021811.84,"d":"7,021,811.84"}}]
[null,"в том числе:\nдоходы от собственности",{"$nulls":3},1100,120]
[null,"доходы от оказания услуг, работ, компенсации затрат учреждений, всего",{"$nulls":3},1200,130,{"v":6875550.99,"d":"6,875,550.99"},{"$f":"I32+I34","v":{"v":6962547.720000001,"d":"6,962,547.72"}},null,{"$f":"K32+K34","v":{"v":7021811.84,"d":"7,021,811.84"}}]
[null,"из них:\nсубсидии на финансовое обеспечение выполнения государственного(муниципального) задания за счет средств федерального бюджета ",{"$nulls":3},1210,130,{"v":6847470.99,"d":"6,847,470.99"},{"$f":"I56-I34","v":{"v":6934467.720000001,"d":"6,934,467.72"}},null,{"$f":"K56-K34","v":{"v":6993731.84,"d":"6,993,731.84"}}]
[null,"субсидии на финансовое обеспечение выполнения государственного задания за счет средств бюджета Федерального фонда обязательного медицинского страхования",{"$nulls":3},1220,130]
[null,"от приносящей доход деятельности",{"$nulls":3},1230,130,{"v":28080,"d":"28,080.00"},{"v":28080,"d":"28,080.00"},null,{"v":28080,"d":"28,080.00"}]
[null,"доходы от штрафов, пеней, иных сумм принудительного изъятия",{"$nulls":3},1300,140]
[null,"безвозмездные денежные поступления, всего",{"$nulls":3},1400,150]
[null,"из них:\nцелевые субсидии",{"$nulls":3},1410,150]
[null,"субсидии на осуществление капитальных вложений",{"$nulls":3},1420,150]
[null,"гранты, гранты в форме субсидий, пожертвования, иные безвозмездные перечисления от физических и юридических лиц, в том числе иностранных организаций",{"$nulls":3},1430,150]
[null,"прочие доходы",{"$nulls":3},1500,180]
[null,"доходы от операций с активами, всего",{"$nulls":3},1600,"х"]
[null,"в том числе:\nдоходы от операций с нефинансовыми активами, всего\n",{"$nulls":3},1610,400]
[null,"в том числе:\nдоходы от выбытия основных средств\n",{"$nulls":3},1611,410]
[null,"доходы от выбытия нематериальных активов",{"$nulls":3},1612,420]
[null,"доходы от выбытия непроизведенных активов",{"$nulls":3},1613,430]
[null,"доходы от выбытия материальных запасов",{"$nulls":3},1614,440]
[null,"поступления от операций с финансовыми активами, всего",{"$nulls":3},1620,600]
[null,"в том числе:\nпоступление средств от реализации векселей, облигаций и иных ценных бумаг (кроме акций)\n\n",{"$nulls":3},1621,620]
[null,"поступления от продажи акций и иных форм участия в капитале, находящихся в федеральной собственности\n",{"$nulls":3},1622,630]
[null,"возврат денежных средств с иных финансовых активов, в том числе со счетов управляющих компаний",{"$nulls":3},1623,650]
[null,"прочие поступления, всего5",{"$nulls":3},1700,"х"]
[null,"из них:\nувеличение остатков денежных средств ",{"$nulls":3},1710,510,{"$nulls":4},"х"]
[null,"поступление средств в рамках расчетов между головным учреждением и обособленным подразделением6",{"$nulls":3},1720,510]
[null,"поступление средств от погашения предоставленных ранее ссуд, кредитов",{"$nulls":3},1730,640]
[null,"получение ссуд, кредитов (заимствований)",{"$nulls":3},1740,710]
[null,"Выплаты, всего",{"$nulls":3},2000,"х",{"$f":"H57+H86+H72","v":{"v":7053923.96,"d":"7,053,923.96"}},{"$f":"I57+I72+I86","v":{"v":6962547.720000001,"d":"6,962,547.72"}},null,{"$f":"K57+K72+K86","v":{"v":7021811.84,"d":"7,021,811.84"}}]
[null,"в том числе:\nна выплаты персоналу, всего",{"$nulls":3},2100,"х",{"$f":"H58+H61","v":{"v":4718725.74,"d":"4,718,725.74"}},{"$f":"I58+I61","v":{"v":4718725.74,"d":"4,718,725.74"}},null,{"$f":"K58+K61","v":{"v":4718725.74,"d":"4,718,725.74"}}]
[null,"в том числе:\nоплата труда",{"$nulls":3},2110,111,{"v":3624213.32,"d":"3,624,213.32"},{"v":3624213.32,"d":"3,624,213.32"},null,{"v":3624213.32,"d":"3,624,213.32"},"х"]
[null,"прочие выплаты персоналу, в том числе компенсационного характера",{"$nulls":3},2120,112,{"$nulls":4},"х"]
[null,"иные выплаты, за исключением фонда оплаты труда учреждения, для выполнения отдельных полномочий",{"$nulls":3},2130,113,{"$nulls":4},"х"]
[null,"взносы по обязательному социальному страхованию на выплаты по оплате труда работников и иные выплаты работникам учреждений",{"$nulls":3},2140,119,{"v":1094512.42,"d":"1,094,512.42"},{"v":1094512.42,"d":"1,094,512.42"},null,{"v":1094512.42,"d":"1,094,512.42"},"х"]
[null,"денежное довольствие военнослужащих и сотрудников, имеющих специальные звания",{"$nulls":3},2150,131,{"$nulls":4},"х"]
[null,"выплаты военнослужащим и сотрудникам, имеющим специальные звания, зависящие от размера денежного довольствия",{"$nulls":3},2160,133]
[null,"иные выплаты военнослужащим и сотрудникам, имеющим специальные звания",{"$nulls":3},2170,134,{"$nulls":4},"х"]
[null,"взносы на обязательное социальное страхование в части выплат персоналу, подлежащих обложению страховыми взносами",{"$nulls":3},2180,139,{"$nulls":4},"х"]
[null,"социальные и иные выплаты населению, всего",{"$nulls":3},2200,300,{"$nulls":4},"х"]
[null,"в том числе:\nпособия, компенсации и иные социальные выплаты гражданам, кроме публичных нормативных обязательств",{"$nulls":3},2210,321,{"$nulls":4},"х"]
[null,"приобретение товаров, работ, услуг в пользу граждан в целях их социального обеспечения",{"$nulls":3},2220,323]
[null,"выплата стипендий, осуществление иных расходов на социальную поддержку обучающихся за счет средств стипендиального фонда",{"$nulls":3},2230,340,{"$nulls":4},"х"]
[null,"на премирование физических лиц за достижения в области культуры, искусства, образования, науки и техники, а также на предоставление грантов с целью поддержки проектов в области науки, культуры и искусства",{"$nulls":3},2240,350,{"$nulls":4},"х"]
[null,"иные выплаты населению",{"$nulls":3},2250,360,{"$nulls":4},"х"]
[null,"уплата налогов, сборов и иных платежей, всего",{"$nulls":3},2300,850,{"$f":"H73+H75","v":{"v":562551,"d":"562,551.00"}},{"$f":"I73","v":{"v":562551,"d":"562,551.00"}},null,{"$f":"K73","v":{"v":562551,"d":"562,551.00"}},"х"]
[null,"из них:\nналог на имущество организаций и земельный налог",{"$nulls":3},2310,851,{"v":562551,"d":"562,551.00"},{"v":562551,"d":"562,551.00"},null,{"v":562551,"d":"562,551.00"},"х"]
[null,"иные налоги (включаемые в состав расходов) в бюджеты бюджетной системы Российской Федерации, а также государственная пошлина",{"$nulls":3},2320,852,{"$nulls":4},"х"]
[null,"уплата штрафов (в том числе административных), пеней, иных платежей",{"$nulls":3},2330,853,{"$nulls":4},"х"]
[null,"безвозмездные перечисления организациям и физическим лицам, всего",{"$nulls":3},2400,"х",{"$nulls":4},"х"]
[null,"из них:\nгранты, предоставляемые бюджетным учреждениям",{"$nulls":3},2410,613]
[null,"гранты, предоставляемые автономным учреждениям",{"$nulls":3},2420,623]
[null,"гранты, предоставляемые иным некоммерческим организациям (за исключением бюджетных и автономных учреждений)",{"$nulls":3},2430,634]
[null,"гранты юридическим лицам (кроме некоммерческих организаций), индивидуальным предпринимателям",{"$nulls":3},2440,814,{"$nulls":4},"х"]
[null,"взносы в международные организации",{"$nulls":3},2450,862,{"$nulls":4},"х"]
[null,"платежи в целях обеспечения реализации соглашений с правительствами иностранных государств и международными организациями",{"$nulls":3},2460,863,{"$nulls":4},"х"]
[null,"прочие выплаты (кроме выплат на закупку товаров, работ, услуг), всего",{"$nulls":3},2500,"х",{"$nulls":4},"х"]
[null,"в том числе:\nисполнение судебных актов Российской Федерации и мировых соглашений по возмещению вреда, причиненного в результате деятельности учреждения",{"$nulls":3},2510,831,{"$nulls":4},"х"]
[null,"исполнение судебных актов судебных органов иностранных государств, международных судов и арбитражей, мировых соглашений, заключенных в рамках судебных процессов в судебных органах иностранных государств, в международных судах и арбитражах",{"$nulls":3},2520,832]
[null,"расходы на закупку товаров, работ, услуг, всего 7",{"$nulls":3},2600,"х",{"$f":"H90+H98","v":{"v":1772647.22,"d":"1,772,647.22"}},{"$f":"I90+I98","v":{"v":1681270.98,"d":"1,681,270.98"}},null,{"$f":"K90+K98","v":{"v":1740535.1,"d":"1,740,535.10"}}]
[null,"из них:\nзакупку научно-исследовательских, опытно-конструкторских и технологических работ",{"$nulls":3},2610,241]
[null,"закупку товаров, работ, услуг в целях капитального ремонта государственного (муниципального) имущества",{"$nulls":3},2620,243]
[null,"прочую закупку товаров, работ и услуг",{"$nulls":3},2630,244]
[null,"из них:",{"$nulls":5},{"$f":"H91+H92+H93+H94+H95+H96","v":{"v":861170.84,"d":"861,170.84"}},{"$f":"I91+I92+I93+I94+I95+I96","v":{"v":733335.54,"d":"733,335.54"}},null,{"$f":"K91+K92+K93+K94+K95+K96","v":{"v":754682.24,"d":"754,682.24"}}]
[null,"            услуги связи",{"$nulls":3},2631,244,{"v":20875.46,"d":"20,875.46"},{"v":20200,"d":"20,200.00"},null,{"v":20200,"d":"20,200.00"}]
[null,"           коммунальные услуги",{"$nulls":3},2632,244,{"v":36160.5,"d":"36,160.50"},{"v":37606.92,"d":"37,606.92"},null,{"v":39111.2,"d":"39,111.20"}]
[null,"          работы, услуги по содержанию имущества",{"$nulls":3},2633,244,{"v":167862.42,"d":"167,862.42"},{"v":160968.17,"d":"160,968.17"},null,{"v":160968.17,"d":"160,968.17"}]
[null,"         прочие работы, услуги",{"$nulls":3},2634,244,{"v":614272.46,"d":"614,272.46"},{"v":492420.45,"d":"492,420.45"},null,{"v":512117.27,"d":"512,117.27"}]
[null,"          увеличение стоимости лекарственных препаратов и материалов",{"$nulls":3},2635,244,{"v":3500,"d":"3,500.00"},{"v":3640,"d":"3,640.00"},null,{"v":3785.6,"d":"3,785.60"}]
[null,"          увеличение стоимости материальных запасов",{"$nulls":3},2636,244,{"v":18500,"d":"18,500.00"},{"v":18500,"d":"18,500.00"},null,{"v":18500,"d":"18,500.00"}]
[null,"закупку товаров, работ и услуг для обеспечения государственных (муниципальных) нужд в области геодезии и картографии вне рамок государственного оборонного заказа",{"$nulls":3},2640,245]
[null,"закупку энергетических ресурсов",{"$nulls":3},2650,247,{"$f":"H100","v":{"v":911476.38,"d":"911,476.38"}},{"$f":"I100","v":{"v":947935.44,"d":"947,935.44"}},null,{"$f":"K100","v":{"v":985852.86,"d":"985,852.86"}}]
[null,"из них:"]
[null,"коммунальные услуги",{"$nulls":3},2651,247,{"v":911476.38,"d":"911,476.38"},{"v":947935.44,"d":"947,935.44"},null,{"v":985852.86,"d":"985,852.86"}]
[null,"капитальные вложения в объекты государственной (муниципальной) собственности, всего",{"$nulls":3},2700,400]
[null,"в том числе:\nприобретение объектов недвижимого имущества",{"$nulls":3},2710,406]
[null,"строительство (реконструкция) объектов недвижимого имущества",{"$nulls":3},2720,407]
[null," Выплаты, уменьшающие доход, всего 8",{"$nulls":3},3000,"х",{"$nulls":4},"х"]
[null,"в том числе:\nналог на прибыль 8",{"$nulls":3},3010,180,{"$nulls":4},"х"]
[null,"налог на добавленную стоимость 8",{"$nulls":3},3020,180,{"$nulls":4},"х"]
[null,"прочие налоги, уменьшающие доход 8",{"$nulls":3},3030,180,{"$nulls":4},"х"]
[null,"Прочие выплаты, всего 9",{"$nulls":3},4000,"х",{"$nulls":4},"х"]
[null,"в том числе:\nуменьшение остатков денежных средств",{"$nulls":3},4010,610,{"$nulls":4},"х"]
[null,"перечисление средств в рамках расчетов между головным учреждением и обособленным подразделением10",{"$nulls":3},4020,610]
[null,"вложение денежных средств в векселя, облигации и иные ценные бумаги (кроме акций)",{"$nulls":3},4030,520]
[null,"вложение денежных средств в акции и иные финансовые инструменты",{"$nulls":3},4040,530]
[null,"предоставление ссуд, кредитов (заимствований)",{"$nulls":3},4050,540]
[null,"возврат ссуд, кредитов (заимствований)",{"$nulls":3},4060,810]
[]
[]
[null,"1 Указывается дата вступления в силу Плана (изменений в План)."]
[null,"2 При представлении уточненного Плана указывается номер очередного внесения изменения в приложение (например, «1», «2», «3», «...»)."]
[null,"3 В графе 3 отражаются:\nпо строкам 1100 – 1600 - коды аналитической группы подвида доходов бюджетов классификации доходов бюджетов;\nпо строкам 1710 – 1740 - коды аналитической группы вида источников финансирования дефицитов бюджетов классификации источников финансирования дефицитов бюджетов;\nпо строкам 2000 – 2642- коды видов расходов бюджетов классификации расходов бюджетов;\nпо строкам 3000 – 3030 - коды аналитической группы подвида доходов бюджетов  классификации доходов бюджетов, по которым планируется уплата налогов, уменьшающих доход (в том числе налог на прибыль, налог на добавленную стоимость, единый налог на вмененный доход для отдельных видов деятельности);\nпо строкам 4000 – 4060 - коды аналитической группы вида источников финансирования дефицитов бюджетов классификации источников финансирования дефицитов бюджетов."]
[null,"4 По строкам 0001 и 0002 указываются планируемые суммы остатков средств на начало и на конец планируемого года, если указанные показатели по решению органа, осуществляющего функции и полномочия учредителя, планируются на этапе формирования проекта Плана либо указываются фактические остатки средств при внесении изменений в утвержденный План после завершения отчетного финансового года."]
[null,"5 Показатели прочих поступлений включают в себя, в том числе показатели увеличения денежных средств за счет возврата дебиторской задолженности прошлых лет, включая возврат предоставленных займов (микрозаймов), а также за счет возврата средств, размещенных на банковских депозитах. При формировании Плана (проекта Плана) обособленному(ым) подразделению(ям) показатель прочих поступлений включает показатель поступлений в рамках расчетов между головным учреждением и обособленным подразделением."]
[null,"6 По строке 1720 отражается поступление денежных средств в рамках расчетов между головным учреждением и обособленным(и) подразделением(ями). Показатель формируется в случае, если учреждением принято решение об утверждении Плана обособленному подразделению. Показатель формируется в плане головного учреждения и обособленного подразделения. Показатель в Плане, утверждаемом учреждением по юридическому лицу, содержащем сводные показатели Плана, не формируется."]
[null,"7 Показатели выплат по расходам на закупку товаров, работ, услуг, отраженные в строке 26000  Раздела 1 «Поступления и выплаты» Плана, подлежат детализации в Разделе 2 «Сведения по выплатам на закупку товаров, работ, услуг» Плана."]
[null,"8  Показатель отражается со знаком «минус»."]
[null,"9  Показатели прочих выплат включают в себя, в том числе показатели уменьшения  денежных средств за счет возврата средств субсидий, предоставленных до начала текущего финансового года,  предоставления займов (микрозаймов), размещения автономными учреждениями денежных средств на банковских депозитах. При формировании Плана (проекта Плана) обособленному(ым) подразделению(ям) показатель прочих выплат включает показатель поступлений в рамках расчетов между головным учреждением и обособленным подразделением."]
[null,"10 По строке 4020 отражается выбытие денежных средств в рамках расчетов между головным учреждением и обособленным(и) подразделением(ями). Показатель формируется в случае, если учреждением принято решение об утверждении Плана обособленному подразделению. Показатель формируется в плане головного учреждения и обособленного подразделения. Показатель в Плане, утверждаемом учреждением по юридическому лицу, содержащем сводные показатели Плана не формируется."]

{"sheet":"Раздел 2","index":1,"n_rows":70,"n_cols":15,"rows_kept":70,"merged":[[0,1,0,14],[2,1,3,1],[2,2,3,6],[2,7,3,7],[2,8,3,8],[2,9,3,9],[2,10,3,10],[2,11,2,14],[4,2,4,6],[5,2,5,6],[6,2,6,6],[7,2,7,6],[8,2,8,6],[9,2,9,6],[10,2,10,6],[12,2,12,6],[14,2,14,6],[15,2,15,6],[16,2,16,6],[17,2,17,6],[18,2,18,6],[19,2,19,6],[20,2,20,6],[21,2,21,6],[22,2,22,6],[23,2,23,6],[24,2,24,6],[26,2,26,6],[28,2,28,6],[29,2,29,6],[30,2,30,6],[31,2,31,6],[32,2,32,6],[33,2,33,6],[35,2,35,6],[36,2,36,6],[37,2,37,6],[38,2,38,6],[39,2,39,6],[40,2,40,6],[47,12,47,13],[48,12,48,13],[52,1,52,7],[54,1,54,5],[54,6,54,7],[59,1,59,14],[60,1,60,14],[61,1,61,14],[62,1,62,14],[63,1,63,14],[64,1,64,14],[65,1,65,14],[66,1,66,14],[67,1,67,14],[68,1,68,14],[69,1,69,14]]}
[null,"Раздел 2. Сведения по выплатам на закупку товаров, работ, услуг11"]
[]
[null,"№ \nпункта, подпункта","Наименование показателя",{"$nulls":4},"Коды \nстрок","Год начала закупки","Код по бюджетной классификации Российской Федерации 12","Уникальный код13","Сумма "]
[{"$nulls":11},"на 2021 г.\n(текущий  финансовый год)","на 2022 г.\n(первый год планового периода)","на 2023 г.\n(второй год планового периода)","за пределами  планового периода"]
[null,1,2,{"$nulls":4},3,"4","5","6","7","8","9",10]
[null,1,"Выплаты на закупку товаров, работ, услуг, всего 14",{"$nulls":4},"260000","х","х","х",{"$f":"'Раздел 1'!H86","v":{"v":1772647.22,"d":"1,772,647.22"}},{"$f":"'Раздел 1'!I86","v":{"v":1681270.98,"d":"1,681,270.98"}},{"$f":"'Раздел 1'!K86","v":{"v":1740535.1,"d":"1,740,535.10"}}]
[null,"1.1.","в том числе:\nв соответствии с Федеральным законом № 44-ФЗ, всего",{"$nulls":4},"261000","х","х","х"]
[null,"1.2.","по контрактам (договорам), планируемым к заключению в соответствующем финансовом году без применения норм Федерального закона № 44-ФЗ и Федерального закона № 223-ФЗ15",{"$nulls":4},"262000","х","х","х"]
[null,"1.3.","по контрактам (договорам), заключенным до начала текущего финансового года с учетом требований Федерального закона № 44-ФЗ и Федерального закона № 223-ФЗ, всего 16",{"$nulls":4},"263000","х","х","х",{"v":1326377.8,"d":"1,326,377.80"}]
[null,"1.3.1.","в том числе:\nв соответствии с Федеральным законом № 44-ФЗ, всего",{"$nulls":4},"263100","х","х","х"]
[null,null,"из них12:"]
[]
[null,null,"из них13:"]
[]
[null,"1.3.2.","в соответствии с Федеральным законом  № 223-ФЗ",{"$nulls":4},"263200","х","х","х"]
[null,"1.4.","по контрактам (договорам), планируемым к заключению в соответствующем финансовом году с учетом требований Федерального закона № 44-ФЗ и Федерального закона № 223-ФЗ, всего 16",{"$nulls":4},"264000","х","х","х",{"$f":"L6-L9","v":{"v":446269.4199999999,"d":"446,269.42"}},{"$f":"M6","v":{"v":1681270.98,"d":"1,681,270.98"}},{"$f":"N6","v":{"v":1740535.1,"d":"1,740,535.10"}}]
[null,"1.4.1","в том числе:\nза счет субсидий, предоставляемых  на финансовое обеспечение выполнения государственного задания, всего",{"$nulls":4},"264100","х","х","х",{"$f":"L18","v":{"v":418189.4199999999,"d":"418,189.42"}},{"$f":"M16-M32","v":{"v":1653190.98,"d":"1,653,190.98"}},{"$f":"N16-N32","v":{"v":1712455.1,"d":"1,712,455.10"}}]
[null,"1.4.1.1.","в том числе:\nв соответствии с Федеральным законом № 44-ФЗ ",{"$nulls":4},"264110","х","х","х",{"$f":"L16-L32","v":{"v":418189.4199999999,"d":"418,189.42"}},{"$f":"M17","v":{"v":1653190.98,"d":"1,653,190.98"}},{"$f":"N17","v":{"v":1712455.1,"d":"1,712,455.10"}}]
[null,"1.4.1.2.","в соответствии с Федеральным законом  № 223-ФЗ17",{"$nulls":4},"264120","х","х","х"]
[null,"1.4.2.","за счет субсидий, предоставляемых в соответствии с абзацем вторым пункта 1 статьи 78.1 Бюджетного кодекса Российской Федерации, всего",{"$nulls":4},"264200","х","х","х"]
[null,"1.4.2.1","в том числе:\nв соответствии с Федеральным законом № 44-ФЗ ",{"$nulls":4},"264210","х","х","х"]
[null,null,"из них12:",{"$nulls":5},"х",null,"х"]
[null,"1.4.2.2.","в соответствии с Федеральным законом  № 223-ФЗ17",{"$nulls":4},"264220","х","х","х"]
[null,"1.4.3.","за счет субсидий, предоставляемых  на осуществление капитальных вложений18",{"$nulls":4},"264300","х","х","х"]
[null,null,"из них12:",{"$nulls":5},"х"]
[{"$nulls":8},"х"]
[null,null,"из них13:",{"$nulls":5},"х"]
[]
[null,"1.4.4.","за счет средств обязательного медицинского страхования, всего",{"$nulls":4},"264400","х","х","х"]
[null,"1.4.4.1.","в том числе:\nв соответствии с Федеральным законом № 44-ФЗ ",{"$nulls":4},"264410","х","х","х"]
[null,"1.4.4.2.","в соответствии с Федеральным законом  № 223-ФЗ17",{"$nulls":4},"264420","х","х","х"]
[null,"1.4.5.","за счет прочих источников финансового обеспечения, всего",{"$nulls":4},"264500","х","х","х",{"v":28080,"d":"28,080.00"},{"v":28080,"d":"28,080.00"},{"v":28080,"d":"28,080.00"}]
[null,"1.4.5.1.","в том числе:\nв соответствии с Федеральным законом № 44-ФЗ",{"$nulls":4},"264510","х","х","х",{"v":28080,"d":"28,080.00"},{"v":28080,"d":"28,080.00"},{"v":28080,"d":"28,080.00"}]
[null,null,"из них13:",{"$nulls":5},"х"]
[{"$nulls":8},"х"]
[null,"1.4.5.2.","в соответствии с Федеральным законом  № 223-ФЗ",{"$nulls":4},"264520","х","х","х"]
[null,"2.","Итого по контрактам, планируемым к заключению в соответствующем финансовом году в соответствии с Федеральным законом  № 44-ФЗ,  по соответствующему году закупки, всего19 ",{"$nulls":4},"265000","х","х","х",{"$f":"L6","v":{"v":1772647.22,"d":"1,772,647.22"}},{"$f":"M6","v":{"v":1681270.98,"d":"1,681,270.98"}},{"v":1740535.1,"d":"1,740,535.10"}]
[null,null,"в том числе по году начала закупки:",{"$nulls":4},"265100","2021 2022 2023","х","х",{"$f":"L37","v":{"v":1772647.22,"d":"1,772,647.22"}},{"$f":"M37","v":{"v":1681270.98,"d":"1,681,270.98"}},{"$f":"N37","v":{"v":1740535.1,"d":"1,740,535.10"}}]
[null,"3.","Итого по договорам, планируемым к заключению в соответствующем финансовом году в соответствии с Федеральным законом № 223-ФЗ,   по соответствующему году закупки",{"$nulls":4},"266000","х","х","х"]
[null,null,"в том числе по годам начала закупки:",{"$nulls":4},"266100",null,"х","х"]
[{"$nulls":10},"х"]
[]
[]
[null,"Руководитель"]
[null,"(уполномоченное лицо)",{"$nulls":3},"заведующий МБДОУ","                                                          А.Р.Даминова"]
[{"$nulls":5},"             (должность)                   (подпись)                  (расшифровка подписи)"]
[]
[null,"Исполнитель                                                ",{"$nulls":3},"ведущий бухгалтер","     А.Р.Маркелова                                 42-51-03"]
[{"$nulls":5},"             (должность)                   (подпись)                           (телефон)","    (фамилия, инициалы)                        (телефон)"]
[]
[null,"«___» ___________ 20___ г.20"]
[]
[null,"СОГЛАСОВАНО"]
[null,"Руководитель департамента по бюджету и финансам НМР РТ",{"$nulls":4},"___________________                                С.Н.Логинова"]
[null,"(наименование должностного лица органа - учредителя)",{"$nulls":4},"                 (подпись)                                     (расшифровка подписи)"]
[]
[null,"«___» ___________ 20___ г."]
[]
[null,"________________________________________________________________"]
[null,"11 В Разделе 2 «Сведения по выплатам на закупку товаров, работ, услуг» Плана детализируются показатели выплат по расходам на закупку товаров, работ, услуг, отраженные по соответствующим строкам Раздела 1 «Поступления и выплаты» Плана."]
[null,"12 В случаях, если учреждению предоставляются субсидия на иные цели, субсидия на осуществление капитальных вложений или гранты в форме субсидий в соответствии с абзацем первым пункта 4 статьи 78.1 Бюджетного кодекса Российской Федерации в целях достижения результатов федерального проекта, в том числе входящего в состав соответствующего национального проекта (программы), определенного Указом Президента Российской Федерации от 7 мая 2018 г. № 204 «О национальных целях и стратегических задачах развития Российской Федерации на период до 2024 года» (Собрание законодательства Российской Федерации, 2018, № 20, ст. 2817; 2020, № 30, ст. 4884) (далее - федеральный проект), или регионального проекта, обеспечивающего достижение целей, показателей и результатов федерального проекта (далее - региональный проект), показатели строк 263100, 264210, 264300 и 264510 Раздела 2 «Сведения по выплатам на закупку товаров, работ, услуг» Плана дополнительно детализируются по коду основного мероприятия целевой статьи расходов (11 - 12 разряды кода классификации расходов бюджетов) и коду направления расходов целевой статьи расходов (13 - 17 разряды кода классификации расходов бюджетов)."]
[null,"13Указывается уникальный код объекта капитального строительства, объекта недвижимого имущества."]
[null,"14 Плановые показатели выплат на закупку товаров, работ, услуг по строке 260000 Раздела 2 «Сведения по выплатам на закупку товаров, работ, услуг» Плана распределяются на выплаты по контрактам (договорам), заключенным (планируемым к заключению) в соответствии с гражданским законодательством Российской Федерации  (строки 261000 и 262000), а также по контрактам (договорам), заключаемым в соответствии с требованиями  законодательства Российской Федерации и иных нормативных правовых актов о контрактной системе в сфере закупок товаров, работ, услуг для государственных и муниципальных нужд, с детализацией указанных выплат по контрактам (договорам), заключенным до начала текущего финансового года (строка 263000) и планируемым к заключению в соответствующем финансовом году (строка 264000) и должны соответствовать показателям соответствующих граф по строке 2600 Раздела 1 «Поступления и выплаты» Плана."]
[null,"15 Указывается сумма договоров (контрактах) о закупках товаров, работ, услуг, заключенных без учета требований  Федерального закона № 44-ФЗ и Федерального закона  № 223-ФЗ, в случаях предусмотренных указанными федеральными законами."]
[null,"16 Указывается сумма закупок товаров, работ, услуг, осуществляемых в соответствии с Федеральным законом № 44-ФЗ и Федеральным законом № 223-ФЗ."]
[null,"17 Федеральным государственным бюджетным учреждением показатель не формируется."]
[null,"18 Указывается сумма закупок товаров, работ, услуг, осуществляемых в соответствии с Федеральным законом № 44-ФЗ."]
[null,"19 Плановые показатели выплат на закупку товаров, работ, услуг  по строке 265000 федерального государственного бюджетного учреждения должен быть не менее суммы показателей строк 264100, 264200, 264300, 264400 по соответствующей графе, федерального государственного автономного учреждения - не менее показателя строки 264300 по соответствующей графе."]
[null,"20 Указывается дата подписания Плана руководителем (уполномоченным лицом) учреждения."]
[null,"21 Указывается, если решением органа - учредителя  установлено требование о согласовании Плана."]